[Event "Championnat d'Europe Rapide"]
[Date "2024.12.07"]
[White "Gatineau, Yovann"]
[Black "Bernadskiy, Vitaliy"]
[WhiteElo "2363"]
[BlackElo "2546"]
[Round "5.25"]
[Result "0-1"]
[TimeControl "900+10"]

1. d4 {[%emt 00:00:16] [%clk 00:15:02]} Nf6 {[%emt 00:00:05] [%clk 00:15:16]} 2.
c4 {[%emt 00:00:01] [%clk 00:15:11]} d6 {[%emt 00:00:02] [%clk 00:15:24]} 3. Nf3
{[%emt 00:00:02] [%clk 00:15:18]} g6 {[%emt 00:00:02] [%clk 00:15:33]} 4. Nc3
{[%clk 00:15:27]} Bg7 {[%emt 00:00:01] [%clk 00:15:41]} 5. e4 {[%emt 00:00:02]
[%clk 00:15:36]} O-O {[%emt 00:00:02] [%clk 00:15:49]} 6. h3 {[%emt 00:00:02]
[%clk 00:15:44]} c6 {[%emt 00:00:11] [%clk 00:15:48]} 7. Be3 {[%emt 00:00:04]
[%clk 00:15:49]} Na6 {[%emt 00:00:05] [%clk 00:15:54]} 8. Be2 {[%emt 00:00:37]
[%clk 00:15:21]} e5 {[%emt 00:00:20] [%clk 00:15:44]} 9. d5 {[%emt 00:00:21]
[%clk 00:15:10]} Nc5 {[%emt 00:00:10] [%clk 00:15:44]} 10. Nd2 {[%emt 00:00:05]
[%clk 00:15:15]} a5 {[%emt 00:00:03] [%clk 00:15:52]} 11. g4 {[%emt 00:00:16]
[%clk 00:15:09]} Bd7 {[%emt 00:00:12] [%clk 00:15:50]} 12. h4 {[%emt 00:00:10]
[%clk 00:15:08]} cxd5 {[%emt 00:00:23] [%clk 00:15:38]} 13. cxd5 {[%emt
00:00:03] [%clk 00:15:15]} b5 {[%emt 00:00:10] [%clk 00:15:37]} 14. g5 {[%emt
00:00:45] [%clk 00:14:41]} Nh5 {[%emt 00:00:01] [%clk 00:15:46]} 15. Nxb5 {[%emt
00:00:59] [%clk 00:13:52]} Nf4 {[%emt 00:00:08] [%clk 00:15:48]} 16. Bxf4 {[%emt
00:05:43] [%clk 00:08:18]} exf4 {[%emt 00:00:12] [%clk 00:15:46]} 17. a4 {[%emt
00:00:16] [%clk 00:08:12]} f3 {[%emt 00:00:41] [%clk 00:15:16]} 18. Bxf3 {[%emt
00:01:19] [%clk 00:07:03]} Nd3+ {[%emt 00:00:12] [%clk 00:15:14]} 19. Kf1 {[%emt
00:00:14] [%clk 00:06:59]} Nxb2 {[%emt 00:00:33] [%clk 00:14:50]} 20. Qb3 {[%emt
00:00:22] [%clk 00:06:46]} Qb6 {[%emt 00:00:04] [%clk 00:14:58]} 21. Kg2 {[%emt
00:03:48] [%clk 00:03:08]} Nxa4 {[%emt 00:00:08] [%clk 00:14:59]} 22. Rxa4
{[%emt 00:00:30] [%clk 00:02:49]} Qxb5 {[%emt 00:01:04] [%clk 00:14:04]} 23.
Qxb5 {[%emt 00:00:07] [%clk 00:02:52]} Bxb5 {[%emt 00:00:02] [%clk 00:14:13]}
24. Ra2 {[%emt 00:00:07] [%clk 00:02:55]} a4 {[%emt 00:00:56] [%clk 00:13:27]}
25. Rb1 {[%emt 00:00:02] [%clk 00:03:03]} Bd3 {[%emt 00:00:01] [%clk 00:13:36]}
26. Rb4 {[%emt 00:00:29] [%clk 00:02:44]} h6 {[%emt 00:02:17] [%clk 00:11:29]}
27. Rbxa4 {[%emt 00:00:50] [%clk 00:02:04]} Rxa4 {[%emt 00:00:02] [%clk
00:11:37]} 28. Rxa4 {[%emt 00:00:01] [%clk 00:02:13]} hxg5 {[%emt 00:00:01]
[%clk 00:11:46]} 29. hxg5 {[%emt 00:00:11] [%clk 00:02:12]} Be5 {[%emt 00:00:03]
[%clk 00:11:52]} 30. Nc4 {[%emt 00:00:36] [%clk 00:01:46]} Bf4 {[%emt 00:00:02]
[%clk 00:12:00]} 31. Nb2 {[%emt 00:00:55] [%clk 00:01:01]} Bb1 {[%emt 00:00:28]
[%clk 00:11:41]} 32. Rb4 {[%emt 00:00:14] [%clk 00:00:58]} Re8 {[%emt 00:00:43]
[%clk 00:11:08]} 33. Na4 {[%emt 00:00:26] [%clk 00:00:42]} Bc2 {[%emt 00:00:07]
[%clk 00:11:11]} 34. Rc4 {[%emt 00:00:13] [%clk 00:00:39]} Bd3 {[%emt 00:00:03]
[%clk 00:11:19]} 35. Rd4 {[%emt 00:00:24] [%clk 00:00:25]} Ba6 {[%emt 00:00:01]
[%clk 00:11:27]} 36. Rb4 {[%emt 00:00:01] [%clk 00:00:34]} Re5 {[%emt 00:00:07]
[%clk 00:11:31]} 37. Nb6 {[%emt 00:00:28] [%clk 00:00:15]} Rxg5+ {[%emt
00:00:32] [%clk 00:11:09]} 38. Kh1 {[%clk 00:00:24]} Kg7 {[%emt 00:00:22] [%clk
00:10:57]} 39. Nc4 {[%emt 00:00:20] [%clk 00:00:14]} Bxc4 {[%emt 00:03:14] [%clk
00:07:53]} 40. Rxc4 {[%emt 00:00:01] [%clk 00:00:23]} Re5 {[%clk 00:08:02]} 41.
Kg2 {[%emt 00:00:05] [%clk 00:00:28]} Re7 {[%emt 00:00:02] [%clk 00:08:10]} 42.
Bg4 {[%emt 00:00:15] [%clk 00:00:23]} Ra7 {[%emt 00:00:03] [%clk 00:08:18]} 43.
Rc2 {[%emt 00:00:03] [%clk 00:00:30]} Kf6 {[%emt 00:00:02] [%clk 00:08:25]} 44.
Bf3 {[%emt 00:00:25] [%clk 00:00:15]} Ke5 {[%emt 00:00:01] [%clk 00:08:34]} 45.
Rb2 {[%clk 00:00:25]} Bg5 {[%emt 00:00:15] [%clk 00:08:29]} 46. Rc2 {[%emt
00:00:06] [%clk 00:00:29]} Kf4 {[%emt 00:00:14] [%clk 00:08:25]} 47. Rb2 {[%emt
00:00:04] [%clk 00:00:35]} Ra3 {[%emt 00:00:20] [%clk 00:08:15]} 48. Rb7 {[%emt
00:00:09] [%clk 00:00:36]} f6 {[%emt 00:00:06] [%clk 00:08:19]} 49. Bd1 {[%emt
00:00:15] [%clk 00:00:31]} Ra2 {[%emt 00:00:36] [%clk 00:07:53]} 50. Rb4 {[%emt
00:00:18] [%clk 00:00:23]} Ke5 {[%emt 00:00:28] [%clk 00:07:35]} 51. Kg3 {[%emt
00:00:04] [%clk 00:00:27]} Bd2 {[%emt 00:00:35] [%clk 00:07:10]} 52. Rc4 {[%emt
00:00:21] [%clk 00:00:17]} Bf4+ {[%emt 00:01:36] [%clk 00:05:43]} 53. Kf3 {[%emt
00:00:12] [%clk 00:00:16]} Rd2 {[%emt 00:00:01] [%clk 00:05:52]} 54. Ba4 {[%emt
00:00:05] [%clk 00:00:22]} Bg5 {[%emt 00:00:17] [%clk 00:05:45]} 55. Be8 {[%emt
00:00:19] [%clk 00:00:13]} Bh4 {[%emt 00:00:14] [%clk 00:05:41]} 56. Ke3 {[%emt
00:00:08] [%clk 00:00:14]} Rxf2 {[%emt 00:00:17] [%clk 00:05:34]} 57. Bxg6
{[%emt 00:00:11] [%clk 00:00:13]} Ra2 {[%emt 00:00:03] [%clk 00:05:42]} 58. Kf3
{[%emt 00:00:08] [%clk 00:00:15]} Ra3+ {[%emt 00:00:07] [%clk 00:05:45]} 59. Kg4
{[%emt 00:00:02] [%clk 00:00:23]} Bf2 {[%emt 00:00:17] [%clk 00:05:37]} 60. Bf5
{[%emt 00:00:07] [%clk 00:00:26]} Rg3+ {[%emt 00:00:04] [%clk 00:05:44]} 61. Kh5
{[%emt 00:00:01] [%clk 00:00:34]} Be3 {[%emt 00:00:05] [%clk 00:05:49]} 62. Bg4
{[%emt 00:00:32] [%clk 00:00:13]} Rg1 {[%emt 00:00:20] [%clk 00:05:38]} 63. Be2
{[%emt 00:00:09] [%clk 00:00:14]} Rg5 {[%emt 00:00:02] [%clk 00:05:47]} 64. Kh4
{[%emt 00:00:01] [%clk 00:00:23]} Kf4 {[%emt 00:00:38] [%clk 00:05:19]} 65. Bd3
{[%emt 00:00:18] [%clk 00:00:15]} Bf2 {[%emt 00:00:02] [%clk 00:05:26]} 66. Kh3
{[%emt 00:00:02] [%clk 00:00:23]} Rg3+ {[%emt 00:00:01] [%clk 00:05:35]} 0-1

[Site "Europe Echecs"]

[Event "Championnat d'Europe Rapide"]
[Date "2024.12.07"]
[White "Mastrovasilis, Dimitrios"]
[Black "Danov, Lyubomir"]
[WhiteElo "2537"]
[BlackElo "2297"]
[Round "5.26"]
[Result "0-1"]
[TimeControl "900+10"]

1. e4 {[%emt 00:00:02] [%clk 00:15:17]} e5 {[%emt 00:00:07] [%clk 00:15:14]} 2.
Nf3 {[%emt 00:00:07] [%clk 00:15:20]} Nc6 {[%emt 00:00:02] [%clk 00:15:22]} 3.
Bc4 {[%emt 00:00:24] [%clk 00:15:05]} Bc5 {[%emt 00:00:10] [%clk 00:15:22]} 4.
c3 {[%emt 00:00:04] [%clk 00:15:11]} Nf6 {[%emt 00:00:13] [%clk 00:15:20]} 5. d4
{[%emt 00:00:12] [%clk 00:15:08]} exd4 {[%emt 00:00:06] [%clk 00:15:24]} 6. e5
{[%emt 00:00:06] [%clk 00:15:13]} d5 {[%emt 00:00:05] [%clk 00:15:29]} 7. Be2
{[%emt 00:00:35] [%clk 00:14:47]} Ng8 {[%emt 00:00:23] [%clk 00:15:16]} 8. cxd4
{[%emt 00:00:09] [%clk 00:14:46]} Bb4+ {[%emt 00:00:19] [%clk 00:15:10]} 9. Bd2
{[%emt 00:00:33] [%clk 00:14:23]} Bxd2+ {[%emt 00:00:05] [%clk 00:15:15]} 10.
Nbxd2 {[%emt 00:00:28] [%clk 00:14:05]} Nge7 {[%emt 00:00:04] [%clk 00:15:21]}
11. O-O {[%emt 00:00:10] [%clk 00:14:04]} O-O {[%emt 00:00:03] [%clk 00:15:29]}
12. Re1 {[%emt 00:00:24] [%clk 00:13:50]} f6 {[%emt 00:01:29] [%clk 00:14:10]}
13. Rc1 {[%emt 00:01:16] [%clk 00:12:43]} fxe5 {[%emt 00:00:11] [%clk 00:14:09]}
14. dxe5 {[%emt 00:00:03] [%clk 00:12:51]} Ng6 {[%emt 00:00:22] [%clk 00:13:57]}
15. Bf1 {[%emt 00:02:51] [%clk 00:10:09]} Nf4 {[%emt 00:00:25] [%clk 00:13:42]}
16. Qb3 {[%emt 00:00:46] [%clk 00:09:34]} Ne7 {[%emt 00:00:45] [%clk 00:13:07]}
17. g3 {[%emt 00:00:40] [%clk 00:09:04]} Ne6 {[%emt 00:00:17] [%clk 00:12:59]}
18. Bg2 {[%emt 00:00:35] [%clk 00:08:40]} c5 {[%emt 00:00:28] [%clk 00:12:41]}
19. Red1 {[%emt 00:00:32] [%clk 00:08:17]} c4 {[%emt 00:02:17] [%clk 00:10:34]}
20. Qa3 {[%emt 00:03:46] [%clk 00:04:41]} b5 {[%emt 00:01:51] [%clk 00:08:54]}
21. b3 {[%emt 00:00:38] [%clk 00:04:13]} Qe8 {[%emt 00:01:38] [%clk 00:07:25]}
22. Nf1 {[%emt 00:01:39] [%clk 00:02:44]} a5 {[%emt 00:00:49] [%clk 00:06:46]}
23. bxc4 {[%emt 00:00:19] [%clk 00:02:36]} dxc4 {[%emt 00:00:08] [%clk
00:06:48]} 24. Qe3 {[%emt 00:01:18] [%clk 00:01:27]} Bb7 {[%emt 00:02:10] [%clk
00:04:48]} 25. a4 {[%emt 00:00:09] [%clk 00:01:29]} Nd5 {[%emt 00:01:45] [%clk
00:03:13]} 26. Qe4 {[%emt 00:00:30] [%clk 00:01:09]} Nc5 {[%emt 00:00:09] [%clk
00:03:14]} 27. Qh4 {[%emt 00:00:03] [%clk 00:01:15]} Nd3 {[%emt 00:00:37] [%clk
00:02:47]} 28. axb5 {[%emt 00:00:03] [%clk 00:01:23]} Nxc1 {[%emt 00:00:36]
[%clk 00:02:21]} 29. Rxc1 {[%emt 00:00:52] [%clk 00:00:41]} c3 {[%emt 00:00:05]
[%clk 00:02:26]} 30. Re1 {[%emt 00:00:38] [%clk 00:00:13]} Qxb5 {[%emt 00:01:11]
[%clk 00:01:25]} 31. e6 {[%emt 00:00:08] [%clk 00:00:15]} c2 {[%emt 00:00:25]
[%clk 00:01:10]} 32. e7 {[%emt 00:00:08] [%clk 00:00:17]} Rfe8 {[%emt 00:00:08]
[%clk 00:01:12]} 33. Bh3 {[%emt 00:00:08] [%clk 00:00:19]} Rxe7 {[%emt 00:00:37]
[%clk 00:00:45]} 34. Rxe7 {[%emt 00:00:14] [%clk 00:00:15]} Nxe7 {[%emt
00:00:02] [%clk 00:00:53]} 35. Ng5 {[%emt 00:00:09] [%clk 00:00:16]} h6 {[%emt
00:00:34] [%clk 00:00:29]} 36. Be6+ {[%emt 00:00:03] [%clk 00:00:22]} Kh8 {[%emt
00:00:08] [%clk 00:00:31]} 37. Nf7+ {[%emt 00:00:13] [%clk 00:00:20]} Kh7 {[%clk
00:00:40]} 38. Nxh6 {[%emt 00:00:03] [%clk 00:00:26]} Qxf1+ {[%emt 00:00:07]
[%clk 00:00:43]} 39. Kxf1 {[%emt 00:00:02] [%clk 00:00:34]} c1=Q+ {[%emt
00:00:03] [%clk 00:00:51]} 40. Ke2 {[%clk 00:00:43]} Qxh6 {[%emt 00:00:13] [%clk
00:00:48]} 41. Qxe7 {[%emt 00:00:05] [%clk 00:00:48]} Qf6 {[%emt 00:00:05] [%clk
00:00:53]} 0-1

[Site "Europe Echecs"]

[Event "Championnat d'Europe Rapide"]
[Date "2024.12.07"]
[White "Smeets, Jan"]
[Black "Zlatkov, Anton"]
[WhiteElo "2552"]
[BlackElo "2324"]
[Round "5.27"]
[Result "1/2-1/2"]
[TimeControl "900+10"]

1. e4 {[%emt 00:00:01] [%clk 00:15:19]} c5 {[%emt 00:00:01] [%clk 00:15:19]} 2.
Nf3 {[%emt 00:00:04] [%clk 00:15:27]} e6 {[%emt 00:00:03] [%clk 00:15:24]} 3. c4
{[%emt 00:00:02] [%clk 00:15:36]} Nc6 {[%emt 00:00:13] [%clk 00:15:21]} 4. Be2
{[%emt 00:00:01] [%clk 00:15:44]} e5 {[%emt 00:00:43] [%clk 00:14:49]} 5. Nc3
{[%emt 00:00:08] [%clk 00:15:46]} d6 {[%emt 00:00:01] [%clk 00:14:57]} 6. d3
{[%emt 00:00:01] [%clk 00:15:55]} g6 {[%emt 00:00:36] [%clk 00:14:31]} 7. a3
{[%emt 00:00:01] [%clk 00:16:04]} Bg7 {[%emt 00:00:16] [%clk 00:14:25]} 8. b4
{[%emt 00:00:02] [%clk 00:16:12]} cxb4 {[%emt 00:01:23] [%clk 00:13:12]} 9. axb4
{[%emt 00:00:02] [%clk 00:16:21]} Nge7 {[%emt 00:00:43] [%clk 00:12:38]} 10. b5
{[%emt 00:00:47] [%clk 00:15:44]} Nd4 {[%emt 00:00:01] [%clk 00:12:47]} 11. Nxd4
{[%emt 00:00:01] [%clk 00:15:53]} exd4 {[%emt 00:00:01] [%clk 00:12:56]} 12. Nd5
{[%emt 00:00:02] [%clk 00:16:01]} Nxd5 {[%emt 00:00:22] [%clk 00:12:45]} 13.
exd5 {[%emt 00:00:14] [%clk 00:15:55]} O-O {[%emt 00:00:03] [%clk 00:12:53]} 14.
O-O {[%emt 00:00:02] [%clk 00:16:04]} Re8 {[%emt 00:01:04] [%clk 00:11:58]} 15.
Bd2 {[%emt 00:02:28] [%clk 00:13:45]} a5 {[%emt 00:01:07] [%clk 00:11:01]} 16.
bxa6 {[%emt 00:00:04] [%clk 00:13:53]} Rxa6 {[%emt 00:00:01] [%clk 00:11:09]}
17. Bf3 {[%emt 00:00:51] [%clk 00:13:11]} Bf5 {[%emt 00:01:27] [%clk 00:09:52]}
18. Qb3 {[%emt 00:00:20] [%clk 00:13:02]} Qb6 {[%emt 00:01:07] [%clk 00:08:56]}
19. Qc2 {[%emt 00:00:45] [%clk 00:12:27]} Rea8 {[%emt 00:00:24] [%clk 00:08:41]}
20. Rab1 {[%emt 00:01:39] [%clk 00:10:58]} Qc7 {[%emt 00:00:14] [%clk 00:08:38]}
21. Be2 {[%emt 00:00:40] [%clk 00:10:29]} Ra3 {[%emt 00:03:41] [%clk 00:05:07]}
22. Rfe1 {[%emt 00:00:35] [%clk 00:10:03]} Qd7 {[%emt 00:00:24] [%clk 00:04:53]}
23. Bf1 {[%emt 00:00:15] [%clk 00:09:58]} h6 {[%emt 00:01:10] [%clk 00:03:53]}
24. Rb6 {[%emt 00:01:38] [%clk 00:08:30]} Ra2 {[%emt 00:00:28] [%clk 00:03:35]}
25. Qc1 {[%emt 00:00:58] [%clk 00:07:42]} Qa4 {[%emt 00:01:55] [%clk 00:01:50]}
26. Bxh6 {[%emt 00:02:03] [%clk 00:05:49]} Ra1 {[%emt 00:00:11] [%clk 00:01:50]}
27. Rb1 {[%emt 00:03:08] [%clk 00:02:50]} Rxb1 {[%emt 00:00:02] [%clk 00:01:58]}
28. Qxb1 {[%clk 00:02:59]} Bxh6 {[%emt 00:00:01] [%clk 00:02:06]} 29. Qxb7
{[%emt 00:00:01] [%clk 00:03:09]} Re8 {[%emt 00:00:55] [%clk 00:01:21]} 30.
Rxe8+ {[%emt 00:01:20] [%clk 00:01:59]} Qxe8 {[%emt 00:00:02] [%clk 00:01:29]}
31. Qb6 {[%emt 00:00:20] [%clk 00:01:49]} Qe5 {[%emt 00:00:30] [%clk 00:01:09]}
32. Qa5 {[%emt 00:00:20] [%clk 00:01:39]} Kg7 {[%emt 00:00:25] [%clk 00:00:54]}
33. h3 {[%emt 00:00:35] [%clk 00:01:15]} Bc1 {[%emt 00:00:27] [%clk 00:00:36]}
34. Qb4 {[%emt 00:00:16] [%clk 00:01:10]} g5 {[%emt 00:00:15] [%clk 00:00:30]}
35. Kh1 {[%emt 00:00:41] [%clk 00:00:39]} g4 {[%emt 00:00:07] [%clk 00:00:33]}
36. hxg4 {[%emt 00:00:05] [%clk 00:00:44]} Bxg4 {[%emt 00:00:03] [%clk
00:00:41]} 37. Kg1 {[%emt 00:00:11] [%clk 00:00:43]} Bf4 {[%emt 00:00:03] [%clk
00:00:49]} 38. Qb1 {[%emt 00:00:34] [%clk 00:00:19]} Qh5 {[%emt 00:00:19] [%clk
00:00:40]} 39. g3 {[%emt 00:00:04] [%clk 00:00:25]} Be5 {[%emt 00:00:01] [%clk
00:00:49]} 40. Bg2 {[%emt 00:00:07] [%clk 00:00:28]} Bf3 {[%emt 00:00:34] [%clk
00:00:25]} 41. Qe1 {[%emt 00:00:06] [%clk 00:00:33]} Qf5 {[%emt 00:00:03] [%clk
00:00:32]} 42. Qd2 {[%emt 00:00:10] [%clk 00:00:33]} Bf6 {[%emt 00:00:04] [%clk
00:00:37]} 43. Qc2 {[%emt 00:00:15] [%clk 00:00:29]} Bg5 {[%emt 00:00:04] [%clk
00:00:43]} 44. Kf1 {[%emt 00:00:09] [%clk 00:00:30]} Bxg2+ {[%emt 00:00:09]
[%clk 00:00:45]} 45. Kxg2 {[%emt 00:00:01] [%clk 00:00:39]} Bf6 {[%emt 00:00:02]
[%clk 00:00:52]} 46. Qe2 {[%emt 00:00:04] [%clk 00:00:46]} Qe5 {[%emt 00:00:03]
[%clk 00:00:59]} 47. Qg4+ {[%emt 00:00:02] [%clk 00:00:55]} Qg5 {[%clk
00:01:08]} 48. Qe4 {[%emt 00:00:04] [%clk 00:01:00]} Qe5 {[%emt 00:00:03] [%clk
00:01:15]} 49. Qg4+ {[%emt 00:00:01] [%clk 00:01:09]} Kf8 {[%clk 00:01:24]} 50.
Qc8+ {[%emt 00:00:03] [%clk 00:01:17]} Qe8 {[%emt 00:00:02] [%clk 00:01:31]} 51.
Qf5 {[%emt 00:00:11] [%clk 00:01:16]} Be5 {[%emt 00:00:06] [%clk 00:01:34]} 52.
Qg4 {[%emt 00:00:19] [%clk 00:01:08]} Bg7 {[%emt 00:00:09] [%clk 00:01:35]} 53.
Qf5 {[%emt 00:00:09] [%clk 00:01:10]} Kg8 {[%emt 00:00:02] [%clk 00:01:42]} 54.
Kf1 {[%emt 00:00:10] [%clk 00:01:10]} Qe7 {[%emt 00:00:05] [%clk 00:01:46]} 55.
Qc8+ {[%emt 00:00:02] [%clk 00:01:18]} Qf8 {[%emt 00:00:18] [%clk 00:01:38]} 56.
Qd7 {[%emt 00:00:07] [%clk 00:01:21]} Qb8 {[%emt 00:00:05] [%clk 00:01:43]} 57.
Kg2 {[%emt 00:00:05] [%clk 00:01:27]} Be5 {[%emt 00:00:04] [%clk 00:01:48]} 58.
Kh3 {[%emt 00:00:58] [%clk 00:00:40]} Qb1 {[%emt 00:00:23] [%clk 00:01:34]} 59.
Qd8+ {[%emt 00:00:25] [%clk 00:00:25]} Kg7 {[%emt 00:00:07] [%clk 00:01:37]} 60.
Qg5+ {[%emt 00:00:03] [%clk 00:00:33]} Kh7 {[%emt 00:00:09] [%clk 00:01:38]} 61.
Qh4+ {[%emt 00:00:21] [%clk 00:00:23]} Kg8 {[%emt 00:00:17] [%clk 00:01:30]} 62.
Qd8+ {[%emt 00:00:02] [%clk 00:00:31]} Kh7 {[%emt 00:00:06] [%clk 00:01:35]} 63.
Qh4+ {[%emt 00:00:01] [%clk 00:00:39]} Kg8 {[%emt 00:00:05] [%clk 00:01:39]}
1/2-1/2

[Site "Europe Echecs"]

[Event "Championnat d'Europe Rapide"]
[Date "2024.12.07"]
[White "Jacimovic, Dragoljub"]
[Black "Grigoriants, Sergey"]
[WhiteElo "2358"]
[BlackElo "2542"]
[Round "5.28"]
[Result "0-1"]
[TimeControl "900+10"]

1. d4 {[%emt 00:00:04] [%clk 00:15:16]} Nf6 {[%emt 00:00:04] [%clk 00:15:16]} 2.
c4 {[%emt 00:00:04] [%clk 00:15:21]} e6 {[%emt 00:00:30] [%clk 00:14:56]} 3. Nc3
{[%emt 00:00:09] [%clk 00:15:22]} Bb4 {[%emt 00:00:08] [%clk 00:14:59]} 4. f3
{[%emt 00:00:11] [%clk 00:15:20]} c5 {[%emt 00:01:00] [%clk 00:14:10]} 5. d5
{[%emt 00:00:03] [%clk 00:15:26]} O-O {[%emt 00:00:03] [%clk 00:14:17]} 6. Bd2
{[%emt 00:00:48] [%clk 00:14:46]} d6 {[%emt 00:00:31] [%clk 00:13:58]} 7. e4
{[%emt 00:00:09] [%clk 00:14:46]} a6 {[%emt 00:00:06] [%clk 00:14:04]} 8. Nge2
{[%emt 00:01:01] [%clk 00:13:52]} exd5 {[%emt 00:00:53] [%clk 00:13:22]} 9. cxd5
{[%emt 00:00:07] [%clk 00:13:55]} Nbd7 {[%emt 00:00:19] [%clk 00:13:14]} 10. Ng3
{[%emt 00:00:13] [%clk 00:13:48]} Ne5 {[%emt 00:01:46] [%clk 00:11:42]} 11. Be2
{[%emt 00:00:22] [%clk 00:13:34]} c4 {[%emt 00:01:20] [%clk 00:10:35]} 12. Be3
{[%emt 00:00:38] [%clk 00:13:05]} Ba5 {[%emt 00:00:43] [%clk 00:10:03]} 13. Qd2
{[%emt 00:01:36] [%clk 00:11:38]} b5 {[%emt 00:00:15] [%clk 00:09:59]} 14. a3
{[%emt 00:00:04] [%clk 00:11:44]} Bb6 {[%emt 00:01:05] [%clk 00:09:04]} 15. O-O
{[%emt 00:00:22] [%clk 00:11:30]} Nfd7 {[%emt 00:00:11] [%clk 00:09:04]} 16. Nf5
{[%emt 00:02:26] [%clk 00:09:14]} Nc5 {[%emt 00:00:41] [%clk 00:08:34]} 17. Nd4
{[%emt 00:00:09] [%clk 00:09:14]} Bd7 {[%emt 00:00:07] [%clk 00:08:38]} 18. Kh1
{[%emt 00:00:34] [%clk 00:08:48]} Re8 {[%emt 00:02:01] [%clk 00:06:48]} 19. Bg1
{[%emt 00:02:55] [%clk 00:06:03]} Qh4 {[%emt 00:00:42] [%clk 00:06:17]} 20. Rab1
{[%emt 00:01:21] [%clk 00:04:51]} Rac8 {[%emt 00:00:20] [%clk 00:06:08]} 21. b4
{[%emt 00:01:42] [%clk 00:03:18]} cxb3 {[%emt 00:01:02] [%clk 00:05:17]} 22.
Nxb3 {[%emt 00:00:05] [%clk 00:03:22]} f5 {[%emt 00:00:14] [%clk 00:05:13]} 23.
Nxc5 {[%emt 00:00:40] [%clk 00:02:52]} Bxc5 {[%emt 00:00:02] [%clk 00:05:22]}
24. Bxc5 {[%emt 00:00:40] [%clk 00:02:22]} Rxc5 {[%emt 00:00:02] [%clk
00:05:30]} 25. Rbc1 {[%emt 00:00:02] [%clk 00:02:30]} Rec8 {[%emt 00:00:57]
[%clk 00:04:43]} 26. f4 {[%emt 00:00:51] [%clk 00:01:49]} Ng6 {[%emt 00:00:15]
[%clk 00:04:38]} 27. exf5 {[%emt 00:00:58] [%clk 00:01:00]} Bxf5 {[%emt
00:00:02] [%clk 00:04:46]} 28. Bd3 {[%emt 00:00:21] [%clk 00:00:50]} Qf6 {[%emt
00:02:20] [%clk 00:02:35]} 29. Bxf5 {[%emt 00:00:26] [%clk 00:00:33]} Qxf5
{[%emt 00:00:01] [%clk 00:02:44]} 30. Ne2 {[%emt 00:00:13] [%clk 00:00:31]} Rxc1
{[%emt 00:00:28] [%clk 00:02:26]} 31. Nxc1 {[%emt 00:00:13] [%clk 00:00:28]} Rc2
{[%emt 00:00:10] [%clk 00:02:26]} 32. Qe3 {[%emt 00:00:23] [%clk 00:00:15]} Qxd5
{[%emt 00:00:33] [%clk 00:02:03]} 33. Ne2 {[%emt 00:00:07] [%clk 00:00:19]} h6
{[%emt 00:01:14] [%clk 00:01:00]} 34. f5 {[%emt 00:00:07] [%clk 00:00:22]} Nh4
{[%emt 00:00:15] [%clk 00:00:55]} 35. Nf4 {[%emt 00:00:12] [%clk 00:00:20]} Qxf5
{[%emt 00:00:15] [%clk 00:00:51]} 36. g3 {[%emt 00:00:08] [%clk 00:00:21]} Ng6
{[%emt 00:00:10] [%clk 00:00:50]} 37. Rd1 {[%emt 00:00:16] [%clk 00:00:16]} Nxf4
{[%emt 00:00:13] [%clk 00:00:47]} 38. gxf4 {[%emt 00:00:03] [%clk 00:00:22]} d5
{[%emt 00:00:41] [%clk 00:00:17]} 39. Re1 {[%emt 00:00:13] [%clk 00:00:17]} Rc4
{[%emt 00:00:11] [%clk 00:00:18]} 40. Rf1 {[%emt 00:00:10] [%clk 00:00:15]} Qe4+
{[%emt 00:00:08] [%clk 00:00:22]} 41. Qxe4 {[%emt 00:00:02] [%clk 00:00:23]}
dxe4 {[%clk 00:00:31]} 42. Kg2 {[%emt 00:00:13] [%clk 00:00:20]} Ra4 {[%emt
00:00:02] [%clk 00:00:38]} 0-1

[Site "Europe Echecs"]